bitfinex/quotes_SOLUSD_20251128
["timestamp","ask_amount","ask_price","bid_price","bid_amount"]
[1764308683936,0.2,140.59,140.58,13.32066222]
[1764308686428,0.2,140.59,140.58,10.00066222]
[1764308688814,0.2,140.59,140.58,9.29066222]
[1764308690235,0.2,140.59,140.58,10.00066222]
[1764308697542,0.2,140.59,140.58,7.82338739]
[1764308697744,0.2,140.59,140.58,10.00066222]
[1764308697943,0.2,140.59,140.58,7.11338739]
[1764308698141,0.2,140.59,140.58,2.17727483]
[1764308698332,0.2,140.59,140.58,2.88727483]
[1764308700444,0.2,140.59,140.58,26.30952622]
[1764308701948,0.2,140.59,140.58,25.59952622]
[1764308702350,0.2,140.59,140.58,26.30952622]
[1764308704527,0.2,140.59,140.58,25.59952622]
[1764308704723,0.8,140.59,140.58,23.42225139]
[1764308704936,0.2,140.59,140.58,25.59952622]
[1764308705249,0.8,140.59,140.57,9.29098869]
[1764308705441,0.8,140.59,140.57,7.11371386]
[1764308705829,0.8,140.59,140.57,9.29098869]
[1764308706249,0.2,140.59,140.58,2.88727483]
[1764308706752,0.2,140.59,140.58,10.00066222]
[1764308707649,0.2,140.59,140.58,9.29066222]
[1764308708027,0.2,140.59,140.58,10.00066222]
[1764308708726,0.2,140.59,140.58,9.29066222]
[1764308709850,0.2,140.59,140.58,10.00066222]
[1764308710347,0.2,140.59,140.58,9.29066222]
[1764308712657,0.2,140.59,140.58,9.99066222]
[1764308713032,0.2,140.59,140.58,9.29066222]
[1764308713232,0.2,140.59,140.58,7.11338739]
[1764308713446,0.2,140.59,140.58,9.29066222]
[1764308713651,0.2,140.59,140.58,10.01066222]
[1764308716059,0.2,140.59,140.58,9.29066222]
[1764308717474,0.2,140.59,140.58,7.11338739]
[1764308719277,0.2,140.59,140.58,10.01066222]
[1764308719435,0.2,140.59,140.58,9.29066222]
[1764308722972,0.2,140.59,140.58,7.11338739]
[1764308726651,0.8,140.59,140.55,22.56112951]
[1764308726854,3.12,140.58,140.55,3.40275527]
[1764308727163,3.72,140.58,140.55,11.23745236]
[1764308728160,3.12,140.58,140.56,7.83390233]
[1764308729474,3.12,140.58,140.56,7.11390233]
[1764308729675,3.72,140.58,140.56,7.11390233]
[1764308730379,3.12,140.58,140.56,7.11390233]
[1764308730572,3.12,140.58,140.56,7.83390233]
[1764308731079,3.12,140.58,140.56,11.2366576]
[1764308733383,3.12,140.58,140.56,7.83390233]
[1764308735066,3.12,140.58,140.56,11.2366576]
[1764308741004,3.12,140.58,140.56,7.11390233]
[1764308741213,3.72,140.58,140.56,7.11390233]
[1764308743411,3.72,140.58,140.56,7.82390233]
[1764308743607,3.12,140.58,140.56,7.82390233]
[1764308752737,3.12,140.58,140.57,0.71]
[1764308753931,3.12,140.58,140.56,7.11390233]
[1764308754141,3.12,140.58,140.56,7.82390233]
[1764308755537,3.12,140.58,140.56,11.2266576]
[1764308759442,0.2,140.59,140.57,0.71]
[1764308759746,3.92,140.59,140.56,10.94390233]
[1764308760448,0.6,140.58,140.56,10.23390233]
[1764308760743,12.49702333,140.57,140.56,3.02]
[1764308761341,0.28432314,140.55,140.52,0.71]
[1764308761541,3.12,140.54,140.52,0.71]
[1764308761740,3.12,140.54,140.52,7.82636405]
[1764308763444,3.12,140.54,140.51,7.11683001]
[1764308763650,3.62,140.54,140.51,7.82683001]
[1764308763942,7.02275527,140.54,140.51,7.82683001]
[1764308764346,6.52275527,140.54,140.52,0.71]
[1764308764548,6.52275527,140.54,140.51,7.82683001]
[1764308764845,7.02275527,140.54,140.51,7.82692319]
[1764308765436,7.02275527,140.54,140.5,7.11734414]
[1764308765437,12.99702333,140.53,140.5,7.11734414]
[1764308765620,9.09426806,140.53,140.5,7.82734414]
[1764308766146,9.09426806,140.53,140.51,0.71]
[1764308766548,12.49702333,140.53,140.51,0.71]
[1764308766722,9.09426806,140.53,140.51,0.71]
[1764308767950,9.09426806,140.53,140.51,7.82687085]
[1764308769963,9.59426806,140.53,140.5,7.82743772]
[1764308770176,9.09426806,140.53,140.5,7.82743772]
[1764308770480,9.09426806,140.53,140.51,0.69]
[1764308771771,9.09426806,140.53,140.51,7.80686893]
[1764308771969,12.99702333,140.53,140.49,0.69]
[1764308772176,12.99702333,140.53,140.5,0.69]
[1764308772485,9.09426806,140.53,140.5,0.69]
[1764308772846,9.59426806,140.53,140.5,0.69]
[1764308773355,3.90275527,140.52,140.49,7.11794433]
[1764308773563,3.12,140.51,140.49,7.77794433]
[1764308773868,3.62,140.51,140.49,7.11794433]
[1764308774045,3.12,140.51,140.49,7.11794433]
[1764308774460,3.12,140.51,140.49,7.77794433]
[1764308774861,12.21426806,140.51,140.5,0.66]
[1764308775062,12.21426806,140.51,140.49,7.77794433]
[1764308775562,12.21426806,140.51,140.49,0.66]
[1764308775775,12.21426806,140.51,140.49,7.77794193]
[1764308778676,0.28432314,140.5,140.49,7.77794193]
[1764308783682,3.12,140.51,140.49,11.1806972]
[1764308783860,3.40432314,140.51,140.5,0.66]
[1764308784885,3.12,140.51,140.5,0.66]
[1764308785692,3.12,140.51,140.5,7.77743772]
[1764308787392,3.12,140.51,140.5,9.95795742]
[1764308793194,3.12,140.51,140.48,17.79541245]
[1764308793195,14.89478776,140.51,140.47,0.66]
[1764308793377,0.78432314,140.5,140.47,7.77876425]
[1764308793873,0.28432314,140.5,140.48,0.66]
[1764308794288,0.28432314,140.5,140.48,7.77808663]
[1764308794870,9.09426806,140.5,140.48,0.66]
[1764308795090,9.09426806,140.5,140.48,7.77844677]
[1764308802476,9.09426806,140.5,140.49,0.66]
[1764308802704,9.09426806,140.5,140.48,7.77844677]
[1764308804504,0.28432314,140.5,140.49,0.66]
[1764308805704,0.28432314,140.5,140.49,7.77794433]
[1764308820009,3.12,140.51,140.49,9.95846403]
[1764308820214,0.2,140.59,140.5,2.8405197]
[1764308820390,5.8005197,140.58,140.52,2.1805197]
[1764308820595,9.09426806,140.57,140.52,2.1805197]
[1764308820792,9.59426806,140.57,140.53,0.66]
[1764308820998,2.1805197,140.55,140.51,0.66]
[1764308821209,3.12,140.54,140.52,2.1805197]
[1764308821608,3.26216157,140.54,140.53,0.66]
[1764308821814,3.40432314,140.54,140.53,7.7759183]
[1764308822418,3.40432314,140.54,140.51,2.8405197]
[1764308822916,3.40432314,140.54,140.52,0.66]
[1764308823906,3.40432314,140.54,140.52,7.77593782]
[1764308824914,3.40432314,140.54,140.53,0.66]
[1764308825326,3.40432314,140.54,140.52,7.77593782]
[1764308826198,3.40432314,140.54,140.53,0.66]
[1764308826903,3.40432314,140.54,140.52,7.77593782]
[1764308827719,3.40432314,140.54,140.53,0.66]
[1764308827925,3.40432314,140.54,140.52,7.77593782]
[1764308832734,3.40432314,140.54,140.52,7.11593782]
[1764308832939,3.40432314,140.54,140.53,7.8259183]
[1764308833736,3.40432314,140.54,140.53,7.1159183]
[1764308834541,0.7,140.59,140.53,10.006438]
[1764308834717,12.42994492,140.58,140.54,2.8905197]
[1764308835041,0.14216157,140.57,140.54,10.00563989]
[1764308835214,0.14216157,140.57,140.55,0.71]
[1764308835617,0.28432314,140.57,140.55,0.71]
[1764308835827,0.28432314,140.57,140.54,7.82512019]
[1764308836849,0.28432314,140.57,140.55,0.72]
[1764308837214,0.28432314,140.57,140.55,7.83488719]
[1764308839122,0.28432314,140.57,140.55,7.11488719]
[1764308839526,0.28432314,140.57,140.55,7.83488719]
[1764308844722,0.28432314,140.57,140.55,7.11488719]
[1764308845044,0.28432314,140.57,140.55,7.83488719]
[1764308846260,0.78432314,140.57,140.55,7.11488719]
[1764308846640,0.28432314,140.57,140.55,7.11488719]
[1764308846954,0.28432314,140.55,140.51,0.72]
[1764308847142,0.28432314,140.53,140.51,0.72]
[1764308847835,9.09426806,140.53,140.51,7.83672688]
[1764308848151,9.59426806,140.53,140.51,7.11672688]
[1764308848337,9.09426806,140.53,140.51,7.83672688]
[1764308852970,0.5,140.52,140.49,0.72]
[1764308853157,3.12,140.51,140.49,0.72]
[1764308853865,3.12,140.51,140.49,7.83775515]
[1764308855960,3.12,140.51,140.49,7.11775515]
[1764308856161,3.40432314,140.51,140.5,0.72]
[1764308856340,3.40432314,140.51,140.49,7.11775515]
[1764308856658,3.40432314,140.51,140.49,7.83775515]
[1764308857566,0.28432314,140.5,140.48,7.11828515]
[1764308857745,0.28432314,140.5,140.49,0.72]
[1764308859155,3.40432314,140.5,140.49,0.72]
[1764308861774,3.40432314,140.5,140.49,7.83794433]
[1764308861970,3.40432314,140.5,140.49,0.72]
[1764308864194,3.40432314,140.5,140.49,7.83794433]
[1764308865686,3.12,140.5,140.49,11.24233485]
[1764308865990,3.12,140.5,140.49,7.83794433]
[1764308873710,3.12,140.5,140.49,11.24233485]
[1764308876038,3.12,140.54,140.49,29.03719569]
[1764308876252,3.12,140.54,140.52,3.40439052]
[1764308876709,3.12,140.54,140.52,4.08439052]
[1764308876909,3.40432314,140.54,140.53,0.68]
[1764308877947,3.40432314,140.54,140.53,7.7959183]
[1764308879312,3.40432314,140.54,140.52,3.40439052]
[1764308879313,3.40432314,140.54,140.52,0.68]
[1764308879513,3.40432314,140.54,140.53,0.68]
[1764308880408,3.12,140.54,140.53,0.68]
[1764308880714,3.12,140.54,140.53,4.08439052]
[1764308881424,3.12,140.54,140.53,11.20030882]
[1764308883556,3.12,140.54,140.53,7.7959183]
[1764308883759,3.12,140.54,140.53,11.20030882]
[1764308887038,3.12,140.58,140.53,28.99010459]
[1764308887353,3.12,140.58,140.56,3.40439052]
[1764308887757,3.40432314,140.58,140.57,7.11389343]
[1764308889758,3.12,140.58,140.57,11.19828395]
[1764308892052,0.2,140.59,140.57,11.19828395]
[1764308892251,0.2,140.59,140.58,4.10439052]
[1764308893763,0.2,140.6,140.58,27.52664191]
[1764308893959,1e-08,140.6,140.59,20.41325452]
[1764308894458,1e-08,140.6,140.59,23.26175015]
[1764308896178,1e-08,140.6,140.59,30.37463157]
[1764308896487,1e-08,140.6,140.59,27.52613594]
[1764308901287,1e-08,140.6,140.59,24.12174542]
[1764308901598,1e-08,140.6,140.59,27.52613594]
[1764308902096,1e-08,140.6,140.59,24.12174542]
[1764308902300,1e-08,140.6,140.59,27.52613594]
[1764308904599,1e-08,140.6,140.59,26.29871569]
[1764308904993,1e-08,140.6,140.59,24.12174542]
[1764308905175,1e-08,140.6,140.59,26.29871569]
[1764308905897,1e-08,140.6,140.59,25.59871569]
[1764308906082,1e-08,140.6,140.59,26.31871569]
[1764308908104,1e-08,140.6,140.59,25.59871569]
[1764308908291,1e-08,140.6,140.58,0.72]
[1764308908479,1e-08,140.6,140.58,10.010017]
[1764308908677,1e-08,140.6,140.59,2.17697027]
[1764308909992,1e-08,140.6,140.59,9.28985169]
[1764308910589,8.80994492,140.59,140.53,2.17697027]
[1764308910802,0.28432314,140.58,140.53,0.72]
[1764308911003,0.98432314,140.58,140.54,2.17697027]
[1764308911513,0.7,140.57,140.54,23.42380169]
[1764308911825,0.7,140.57,140.54,41.93233164]
[1764308912001,0.7,140.57,140.54,24.90346764]
[1764308912515,0.7,140.57,140.54,25.62346764]
[1764308912908,0.7,140.57,140.54,24.90346764]
[1764308913113,0.7,140.57,140.54,7.11493769]
[1764308913410,0.28432314,140.56,140.54,7.11493769]
[1764308913816,0.7,140.55,140.53,7.1159183]
[1764308914408,3.82,140.55,140.53,7.1159183]
[1764308915231,3.12,140.55,140.53,7.1159183]
[1764308916034,3.12,140.55,140.54,0.72]
[1764308917639,3.12,140.55,140.53,7.8359183]
[1764308919221,0.7,140.54,140.5,20.69004278]
[1764308919422,0.7,140.54,140.51,7.11693117]
[1764308919626,0.7,140.54,140.51,7.83693117]
[1764308919826,3.12,140.55,140.52,0.72]
[1764308920140,3.82,140.55,140.52,0.72]
[1764308921826,3.82,140.55,140.53,7.1159183]
[1764308922452,3.12,140.55,140.53,7.1159183]
[1764308922765,3.12,140.55,140.54,2.89697027]
[1764308923058,3.12,140.55,140.54,0.72]
[1764308923627,3.12,140.55,140.54,2.89697027]
[1764308923822,3.12,140.55,140.54,10.01238225]
[1764308924079,0.69000001,140.6,140.57,16.308864]
[1764308924080,1e-08,140.6,140.57,16.308864]
[1764308924248,1e-08,140.6,140.58,2.17697027]
[1764308924456,1e-08,140.6,140.58,2.89697027]
[1764308924752,1e-08,140.6,140.59,2.89697027]
[1764308925945,1e-08,140.6,140.59,10.00985169]
[1764308928963,1e-08,140.6,140.59,26.31871569]
[1764308932851,1e-08,140.6,140.59,24.14174542]
[1764308933046,1e-08,140.6,140.59,26.31871569]
[1764308934368,1e-08,140.6,140.59,24.14174542]
[1764308934568,1e-08,140.6,140.59,26.31871569]
[1764308938773,0.2,140.61,140.6,17.028864]
[1764308938774,1e-08,140.61,140.6,17.028864]
[1764308938965,1e-08,140.61,140.6,2.89697027]
[1764308940078,1e-08,140.61,140.6,26.3182098]
[1764308940573,1e-08,140.62,140.61,17.028864]
[1764308940981,1e-08,140.62,140.61,19.20583427]
[1764308942178,1e-08,140.62,140.61,26.31770398]
[1764308942874,1e-08,140.62,140.61,24.14073371]
[1764308943082,1e-08,140.62,140.61,26.31770398]
[1764308947374,1e-08,140.62,140.61,25.59770398]
[1764308947575,1e-08,140.62,140.61,26.31770398]
[1764308947976,1e-08,140.62,140.61,25.59770398]
[1764308948374,1e-08,140.62,140.61,26.31770398]
[1764308949269,1e-08,140.62,140.61,25.59770398]
[1764308949471,1e-08,140.62,140.61,26.31770398]
[1764308951389,0.66000001,140.62,140.61,7.11186971]
[1764308951574,0.66000001,140.62,140.6,7.11232904]
[1764308952869,8.80994492,140.61,140.58,9.29027212]
[1764308953077,0.97432314,140.6,140.58,7.11330185]
[1764308953273,0.28432314,140.58,140.55,7.11490572]
[1764308953473,0.28432314,140.58,140.54,2.17697027]
[1764308953679,0.69,140.57,140.54,18.48583427]
[1764308953873,0.69,140.59,140.56,2.17697027]
[1764308954116,0.97432314,140.59,140.57,2.17697027]
[1764308954298,0.97432314,140.59,140.56,2.17697027]
[1764308954498,0.69,140.58,140.56,2.17697027]
[1764308955196,0.69,140.58,140.57,2.17697027]
[1764308955389,0.69,140.58,140.57,9.2908637]
[1764308956012,3.12000001,140.62,140.57,7.80389343]
[1764308956215,0.69,140.61,140.59,2.17697027]
[1764308956700,3.81000001,140.62,140.59,2.17697027]
[1764308957070,3.81000001,140.62,140.6,7.11237553]
[1764308957880,0.69,140.61,140.6,7.11237553]
[1764308961801,8.80994492,140.6,140.54,16.308864]
[1764308962098,2.46129341,140.57,140.53,7.1159183]
[1764308962303,3.12,140.56,140.53,23.4247823]
[1764308962604,3.81,140.56,140.53,23.4247823]
[1764308963013,3.81,140.56,140.53,7.1159183]
[1764308963186,3.81,140.56,140.54,23.42398017]
[1764308970199,3.12,140.56,140.54,23.42398017]
[1764308970510,3.12,140.56,140.54,27.51930165]
[1764308973818,3.12,140.56,140.54,24.11398017]
[1764308975098,3.81,140.56,140.54,23.42398017]
[1764308975700,3.12,140.56,140.54,23.42398017]
[1764308978490,3.12,140.56,140.54,24.11398017]
[1764308979107,3.12,140.56,140.54,27.51930165]
[1764308980314,3.12,140.56,140.54,26.82930165]
[1764308980535,3.12,140.56,140.55,4.12532148]
[1764308982030,3.78,140.56,140.54,16.308864]
[1764308982229,0.94432314,140.55,140.52,7.1164247]
[1764308982533,0.94432314,140.55,140.52,7.8364247]
[1764308984429,0.94432314,140.55,140.52,25.62748647]
[1764308984619,3.12,140.56,140.53,4.12532148]
[1764308986228,3.12,140.56,140.54,7.11541198]
[1764308986536,3.12,140.56,140.54,7.83541198]
[1764308986732,3.12,140.56,140.54,7.11541198]
[1764308987337,3.12,140.56,140.54,10.52073346]
[1764308987539,3.12,140.56,140.55,4.12532148]
[1764308988010,3.12,140.56,140.54,10.52073346]
[1764308988216,3.12,140.56,140.54,11.24073346]
[1764308991439,3.12,140.56,140.54,10.52073346]
[1764308991659,3.12,140.56,140.55,0.72]
[1764308992216,3.12,140.56,140.54,11.24073346]
[1764308992638,3.12,140.56,140.54,10.52073346]
[1764308992848,3.12,140.56,140.55,0.72]
[1764308994439,3.12,140.56,140.55,7.11490572]
[1764308994648,3.12,140.56,140.55,7.83490572]
[1764308995329,3.12,140.56,140.55,11.2402272]
[1764308995951,3.12,140.56,140.55,7.11490572]
[1764308996763,3.12,140.56,140.55,7.83490572]
[1764308996946,3.12,140.56,140.55,7.11490572]
[1764308997668,3.12,140.56,140.55,10.5202272]
[1764308998370,3.12,140.56,140.51,51.89153605]
[1764308998371,7.46964462,140.56,140.51,16.308864]
[1764308998554,7.46964462,140.56,140.44,59.53612017]
[1764308998555,0.28432314,140.53,140.49,7.1177501]
[1764308998751,0.28432314,140.53,140.49,11.24307158]
[1764308998752,0.94432314,140.53,140.49,11.24307158]
[1764308999554,0.94432314,140.53,140.5,4.12532148]
[1764308999756,0.94432314,140.53,140.51,7.11693117]
[1764309000145,0.66,140.57,140.52,4.12532148]
[1764309000345,3.14,140.56,140.54,3.40532148]
[1764309000667,3.14,140.56,140.52,3.40532148]
[1764309000972,3.14,140.56,140.53,4.12532148]
[1764309001356,3.14,140.56,140.54,7.11541198]
[1764309001971,3.14,140.56,140.54,10.52073346]
[1764309004550,3.14,140.56,140.54,11.24073346]
[1764309004968,3.14,140.56,140.54,10.52073346]
[1764309005157,3.14,140.56,140.54,7.11541198]
[1764309005361,3.14,140.56,140.54,11.24073346]
[1764309005779,3.14,140.56,140.54,7.83541198]
[1764309005971,3.14,140.56,140.54,11.24073346]
[1764309007566,3.8,140.56,140.54,7.11541198]
[1764309008166,3.14,140.56,140.54,7.11541198]
[1764309008678,13.15958954,140.55,140.5,37.50711457]
[1764309008978,0.66,140.54,140.5,38.22711457]
[1764309009372,0.66,140.54,140.51,7.11675397]
[1764309010495,0.66,140.54,140.51,10.52207545]
[1764309010699,0.66,140.54,140.51,11.21207545]
[1764309012881,13.41410754,140.56,140.51,11.21207545]
[1764309013089,10.52029074,140.55,140.51,7.80675397]
[1764309014891,9.09426806,140.55,140.52,0.71]
[1764309015076,9.13426806,140.55,140.51,11.23207545]
[1764309015889,9.09426806,140.55,140.52,4.11532148]
[1764309016470,9.09426806,140.55,140.53,7.1159183]
[1764309016672,9.09426806,140.55,140.52,7.11628922]
[1764309016862,9.09426806,140.55,140.52,7.82628922]
[1764309019789,9.09426806,140.55,140.52,7.11628922]
[1764309019988,12.49958954,140.55,140.5,26.83124686]
[1764309020293,12.53958954,140.55,140.51,0.71]
[1764309022500,12.53958954,140.55,140.51,7.82643285]
[1764309025506,12.53958954,140.55,140.52,0.71]
[1764309025712,12.53958954,140.55,140.51,7.11643285]
[1764309025713,19.65450041,140.55,140.51,7.82643285]
[1764309025898,19.65450041,140.55,140.52,0.71]
[1764309025899,12.53958954,140.55,140.52,0.71]
[1764309026394,12.49958954,140.55,140.52,0.71]
[1764309026597,11.27434411,140.55,140.52,0.71]
[1764309026796,11.27434411,140.55,140.52,7.82630033]
[1764309027398,0.28432314,140.53,140.52,7.82630033]
[1764309030906,0.28432314,140.53,140.52,10.00637638]
[1764309031416,0.28432314,140.53,140.52,7.82630033]
[1764309037426,0.28432314,140.53,140.52,0.71]
[1764309038318,0.28432314,140.53,140.52,7.8264247]
[1764309039118,3.14,140.54,140.52,10.00650075]
[1764309039320,3.42432314,140.54,140.53,0.71]
[1764309040829,3.42432314,140.54,140.53,7.8259183]
[1764309043309,8.80994492,140.56,140.53,10.00599435]
[1764309043508,2.0,140.62,140.53,10.00599435]
[1764309043509,3.12,140.59,140.56,16.308864]
[1764309043707,3.12,140.59,140.55,2.18007605]
[1764309043932,11.32002097,140.58,140.54,0.7]
[1764309044243,3.12,140.59,140.56,2.18007605]
[1764309044429,3.12,140.59,140.57,0.7]
[1764309044812,3.12,140.59,140.57,2.88007605]
[1764309045210,3.12,140.59,140.58,0.7]
[1764309045433,3.12,140.59,140.58,7.81338739]
[1764309047235,3.12,140.59,140.58,7.11338739]
[1764309047535,5.63007605,140.59,140.56,7.1140153]
[1764309047733,0.33,140.58,140.55,7.81484947]
[1764309049138,2.18007605,140.57,140.54,16.308864]
[1764309049354,9.09426806,140.56,140.54,16.308864]
[1764309049518,3.14,140.55,140.54,16.308864]
[1764309049913,3.14,140.55,140.54,23.42427598]
[1764309050114,3.14,140.55,140.51,7.11649727]
[1764309050443,3.14,140.55,140.53,0.7]
[1764309051545,3.14,140.55,140.54,7.11541198]
[1764309053046,3.14,140.55,140.52,7.1164247]
[1764309053350,3.14,140.55,140.52,7.8164247]
[1764309053948,3.14,140.55,140.53,0.7]
[1764309055427,3.14,140.55,140.53,7.81583914]
[1764309058256,5.32007605,140.55,140.53,0.7]
[1764309058459,5.32007605,140.55,140.53,7.81582662]
[1764309059863,5.32007605,140.55,140.53,0.7]
[1764309059864,3.14,140.55,140.53,0.7]
[1764309060963,3.14,140.55,140.53,7.81585945]
[1764309063670,3.14,140.55,140.52,7.11624889]
[1764309063671,5.32007605,140.55,140.52,7.11624889]
[1764309063858,5.32007605,140.55,140.52,7.81624889]
[1764309064041,5.32007605,140.55,140.53,0.7]
[1764309064237,5.32007605,140.55,140.52,7.11624889]
[1764309064438,9.42426806,140.54,140.51,23.42572146]
[1764309064655,9.09426806,140.54,140.51,24.12572146]
[1764309064842,9.09426806,140.54,140.51,23.42572146]
[1764309065042,11.27434411,140.54,140.51,24.12572146]
[1764309066061,11.27434411,140.54,140.52,0.7]
[1764309066461,11.27434411,140.54,140.51,23.42572146]
[1764309066661,11.27434411,140.54,140.52,0.7]
[1764309068869,11.27434411,140.54,140.52,7.81635675]
[1764309069562,9.09426806,140.54,140.52,7.81635675]
[1764309080071,2.18007605,140.53,140.51,16.308864]
[1764309080380,3.14,140.52,140.51,23.42579517]
[1764309080751,3.14,140.52,140.51,24.10579517]
[1764309083356,0.67,140.59,140.53,16.308864]
[1764309083557,3.81,140.58,140.53,16.308864]
[1764309083782,3.14,140.57,140.54,2.18007605]
[1764309083950,3.14,140.57,140.56,16.308864]
[1764309084552,3.14,140.57,140.56,19.448864]
[1764309084963,3.81,140.57,140.56,26.56326354]
[1764309085159,3.81,140.57,140.56,28.74333959]
[1764309085384,3.14,140.57,140.56,28.74333959]
[1764309085773,0.67,140.59,140.56,28.74333959]
[1764309085962,3.14,140.58,140.56,28.74333959]
[1764309086277,3.81,140.58,140.56,28.74333959]
[1764309086782,3.14,140.58,140.57,2.18007605]
[1764309087080,3.14,140.58,140.57,9.29396948]
[1764309087583,0.67,140.61,140.57,27.07870306]
[1764309087763,3.14,140.61,140.6,2.18007605]
[1764309088677,3.14,140.61,140.6,3.40137354]
[1764309088873,3.81,140.61,140.6,3.40137354]
[1764309089077,3.81,140.61,140.6,10.51374907]
[1764309090088,3.81,140.61,140.58,17.78234161]
[1764309090270,3.81,140.61,140.6,3.40137354]
[1764309090581,0.67,140.6,140.59,25.31880892]
[1764309090979,0.67,140.6,140.59,16.308864]
[1764309091175,3.14,140.61,140.59,19.71023754]
[1764309091381,1e-08,140.62,140.6,19.71023754]
[1764309091687,1e-08,140.62,140.61,3.40137354]
[1764309092265,1e-08,140.62,140.61,10.51324325]
[1764309093684,1e-08,140.62,140.61,13.85324325]
[1764309095180,0.67000001,140.62,140.61,13.85324325]
[1764309095379,1e-08,140.62,140.61,13.85324325]
[1764309101279,0.68000001,140.62,140.61,13.85324325]
[1764309101486,1e-08,140.62,140.61,13.85324325]
[1764309101806,1e-08,140.62,140.61,30.16210725]
[1764309102106,0.68000001,140.62,140.61,30.16210725]
[1764309103005,1e-08,140.62,140.61,30.16210725]
[1764309104004,0.68000001,140.62,140.61,26.76073371]
[1764309104210,1e-08,140.62,140.61,30.16210725]
[1764309104400,0.68000001,140.62,140.61,30.16210725]
[1764309104708,1e-08,140.62,140.61,30.16210725]
[1764309105209,0.68000001,140.62,140.61,30.16210725]
[1764309105707,0.68000001,140.62,140.61,26.82210725]
[1764309105906,0.68000001,140.62,140.61,30.16210725]
[1764309106107,0.68000001,140.62,140.61,26.82210725]
[1764309106504,0.68000001,140.62,140.61,16.308864]
[1764309106804,0.68000001,140.62,140.61,23.42073371]
[1764309107001,0.68000001,140.62,140.61,26.82210725]
[1764309107203,0.68000001,140.62,140.61,23.42073371]
[1764309108405,0.68000001,140.62,140.61,26.82210725]
[1764309108799,0.68000001,140.62,140.61,16.308864]
[1764309108994,0.68000001,140.62,140.59,3.40137354]
[1764309109200,0.68000001,140.62,140.6,7.11232422]
[1764309109392,0.68000001,140.62,140.59,26.82296826]
[1764309110113,0.68000001,140.62,140.58,10.5146103]
[1764309110496,0.68000001,140.62,140.59,3.40137354]
[1764309112518,0.68000001,140.62,140.59,7.11258804]
[1764309113423,0.68000001,140.62,140.59,10.51396158]
[1764309114702,0.68000001,140.62,140.59,7.11258804]
[1764309115020,0.68000001,140.62,140.59,10.51396158]
[1764309116417,0.68000001,140.62,140.61,16.308864]
[1764309116615,3.82000001,140.62,140.61,23.42073371]
[1764309118926,3.14000001,140.62,140.61,23.42073371]
[1764309119133,1e-08,140.62,140.61,26.82210725]
[1764309119338,1e-08,140.62,140.61,29.96210726]
[1764309122720,4.08137355,140.62,140.61,14.868864]
[1764309122919,9.09426806,140.61,140.55,3.34]
[1764309123229,9.09426806,140.58,140.55,7.11483869]
[1764309123544,9.09426806,140.56,140.51,21.82949626]
[1764309123734,9.09426806,140.56,140.52,10.51739821]
[1764309124040,0.68,140.55,140.52,11.16739821]
[1764309124238,0.68,140.55,140.52,28.95845998]
[1764309124738,0.68,140.55,140.54,16.308864]
[1764309124945,0.68,140.55,140.54,23.42427598]
[1764309125645,9.77426806,140.56,140.54,23.42427598]
[1764309128140,9.09426806,140.56,140.54,23.42427598]
[1764309128437,9.09426806,140.56,140.53,7.11587171]
[1764309128438,0.68,140.55,140.53,7.11587171]
[1764309131424,0.67,140.57,140.54,0.71]
[1764309131748,3.14,140.56,140.54,4.11137354]
[1764309132240,3.14,140.56,140.55,4.11137354]
[1764309133443,3.14,140.56,140.55,11.22627926]
[1764309134844,8.80994492,140.6,140.55,29.01354357]
[1764309135031,3.14,140.59,140.56,4.12137354]
[1764309135430,3.14,140.59,140.58,7.11338739]
[1764309138550,3.14,140.59,140.58,11.23476093]
[1764309139740,3.81,140.59,140.56,0.72]
[1764309139944,3.81,140.59,140.56,4.12137354]
[1764309140126,3.81,140.59,140.58,16.308864]
[1764309142537,3.81,140.59,140.58,23.42225139]
[1764309143755,3.14,140.59,140.58,24.14225139]